[Event "CZE-ch U14 Open 2023"]
[Site "Teplice"]
[Date "2023.03.12"]
[Round "2.3"]
[White "Hrbek, Jachym"]
[Black "Zemek, Antonin"]
[Result "1-0"]
[ECO "C17"]
[WhiteElo "1824"]
[BlackElo "1739"]
[Annotator "NA RC COMBH"]
[PlyCount "91"]
[EventDate "2023.03.09"]
[EventType "swiss"]
[EventCountry "CZE"]
[SourceTitle "playchess.com"]
[Source "ChessBase"]
[SourceQuality "1"]
[TimeControl "40/5400+30:1800+30"]

1. e4 {[%emt 0:00:05]} e6 {[%emt 0:01:28]} 2. d4 {[%emt 0:00:30]} d5 {[%emt 0:00:41]} 3. Nc3 {[%emt 0:00:21]} Bb4 {[%emt 0:00:33]} 4. e5 {[%emt 0:00:20]} c5 {[%emt 0:00:40]} 5. a3 {[%emt 0:00:26]} cxd4 {[%emt 0:01:09]} 6. axb4 {[%emt 0:08:01]} dxc3 {[%emt 0:00:17]} 7. bxc3 {[%emt 0:00:43]} Ne7 {[%emt 0:00:51]} 8. Nf3 {[%emt 0:03:59]} Ng6 {[%emt 0:02:45]} 9. Bd3 {[%emt 0:04:17]} Nd7 {[%emt 0:01:42]} 10. Bxg6 {[%emt 0:07:11]} hxg6 {[%emt 0:00:53]} 11. Qd4 {[%emt 0:01:44]} Qc7 {[%emt 0:02:45]} 12. b5 {[%emt 0:08:31]} b6 {[%emt 0:06:16]} 13. Ba3 {[%emt 0:06:12]} Nc5 {[%emt 0:00:34]} 14. O-O {[%emt 0:04:31]} Bb7 {[%emt 0:02:07]} 15. h3 {[%emt 0:02:58]} a5 {[%emt 0:10:05]} 16. bxa6 {[%emt 0:06:40]} Bxa6 {[%emt 0:01:17]} 17. Rfb1 {[%emt 0:09:17]} Qc6 {[%emt 0:07:17]} 18. Qb4 {[%emt 0:02:32]} Rb8 {[%emt 0:02:00]} 19. Nd4 {[%emt 0:05:33]} Qd7 {[%emt 0:08:24]} 20. Nb3 {[%emt 0:05:00]} O-O {[%emt 0:03:36]} 21. Nxc5 {[%emt 0:02:14]} bxc5 {[%emt 0:00:05]} 22. Qxb8 {[%emt 0:00:06]} Rxb8 {[%emt 0:00:08]} 23. Rxb8+ {[%emt 0:00:02]} Kh7 {[%emt 0:00:06]} 24. Bxc5 {[%emt 0:00:50]} Qc6 {[%emt 0:01:50]} 25. Bd4 {[%emt 0:00:45]} Qc4 {[%emt 0:02:40]} 26. Rb6 {[%emt 0:01:48]} Bb5 {[%emt 0:00:32]} 27. Rb7 {[%emt 0:00:19]} Be8 {[%emt 0:00:50]} 28. Rb8 {[%emt 0:04:35]} Bb5 {[%emt 0:02:02]} 29. Rf8 {[%emt 0:01:22]} g5 {[%emt 0:00:51]} 30. Rxf7 {[%emt 0:00:47]} Be8 {[%emt 0:00:39]} 31. Re7 {[%emt 0:01:01]} Bg6 {[%emt 0:00:30]} 32. Rxe6 {[%emt 0:00:31]} Qe2 {[%emt 0:00:40]} 33. Re7 {[%emt 0:00:44]} g4 {[%emt 0:00:19]} 34. hxg4 {[%emt 0:01:08]} Qxg4 {[%emt 0:00:43]} 35. e6 {[%emt 0:00:37]} Kh6 {[%emt 0:00:07]} 36. Re1 {[%emt 0:02:45]} Be4 {[%emt 0:00:46]} 37. Rxg7 {[%emt 0:00:13]} Qxe6 {[%emt 0:00:18]} 38. f3 {[%emt 0:00:21]} Qf5 {[%emt 0:00:57]} 39. fxe4 {[%emt 0:00:26]} dxe4 {[%emt 0:00:05]} 40. Re3 {[%emt 0:00:09]} Kh5 {[%emt 0:01:10]} 41. Rh3+ {[%emt 0:30:18]} Qxh3 {[%emt 0:30:09]} 42. gxh3 {[%emt 0:00:12]} e3 {[%emt 0:00:17]} 43. Bxe3 {[%emt 0:00:21]} Kh4 {[%emt 0:00:05]} 44. Kf2 {[%emt 0:00:30]} Kxh3 {[%emt 0:00:17]} 45. Kf3 {[%emt 0:00:12]} Kh2 {[%emt 0:00:26]} 46. Rh7# 1-0

[Event "CZE-ch U14 Open 2023"]
[Site "Teplice"]
[Date "2023.03.12"]
[Round "2.4"]
[White "Krautschneider, Daniel Jan"]
[Black "Stary, Vojtech"]
[Result "1/2-1/2"]
[ECO "C45"]
[WhiteElo "1679"]
[BlackElo "1814"]
[Annotator "NA RC COMBH"]
[PlyCount "79"]
[EventDate "2023.03.09"]
[EventType "swiss"]
[EventCountry "CZE"]
[SourceTitle "playchess.com"]
[Source "ChessBase"]
[SourceQuality "1"]
[TimeControl "40/5400+30:1800+30"]

1. e4 {[%emt 0:00:04]} e5 {[%emt 0:00:04]} 2. Nf3 {[%emt 0:00:05]} Nc6 {[%emt 0:00:06]} 3. d4 {[%emt 0:00:05]} exd4 {[%emt 0:00:07]} 4. Nxd4 {[%emt 0:00:05]} Bc5 {[%emt 0:00:19]} 5. Be3 {[%emt 0:00:05]} Qf6 {[%emt 0:00:14]} 6. c3 {[%emt 0:00:30]} Nge7 {[%emt 0:00:08]} 7. Be2 {[%emt 0:00:18]} O-O {[%emt 0:01:32]} 8. O-O {[%emt 0:00:39]} Bb6 {[%emt 0:05:26]} 9. Na3 {[%emt 0:04:15]} Ng6 {[%emt 0:20:31]} 10. Nc4 {[%emt 0:02:57]} Nf4 {[%emt 0:09:39]} 11. Nxb6 {[%emt 0:04:52]} Nxe2+ {[%emt 0:02:54]} 12. Qxe2 {[%emt 0:01:23]} axb6 {[%emt 0:00:39]} 13. Nb5 {[%emt 0:00:44]} Qd8 {[%emt 0:07:15]} 14. Rfd1 {[%emt 0:03:32]} Na7 {[%emt 0:07:00]} 15. Nd4 {[%emt 0:03:34]} Re8 {[%emt 0:16:50]} 16. Bf4 {[%emt 0:10:34]} d6 {[%emt 0:03:56]} 17. Qd3 {[%emt 0:06:37]} Bg4 {[%emt 0:05:19]} 18. f3 {[%emt 0:01:50]} Bh5 {[%emt 0:00:52]} 19. a3 {[%emt 0:02:03]} Bg6 {[%emt 0:00:25]} 20. c4 {[%emt 0:02:20]} Nc6 {[%emt 0:02:31]} 21. Qc3 {[%emt 0:05:02]} Nxd4 {[%emt 0:01:29]} 22. Rxd4 {[%emt 0:00:16]} Qf6 {[%emt 0:01:12]} 23. Bg3 {[%emt 0:01:45]} h6 {[%emt 0:02:12]} 24. Re1 {[%emt 0:03:01]} Re6 {[%emt 0:02:07]} 25. e5 {[%emt 0:01:41]} dxe5 {[%emt 0:04:40]} 26. Rxe5 {[%emt 0:02:11]} Rxe5 {[%emt 0:01:10]} 27. Bxe5 {[%emt 0:00:24]} Qe7 {[%emt 0:04:32]} 28. Rd1 {[%emt 0:02:11]} f6 {[%emt 0:00:23]} 29. Bg3 {[%emt 0:00:19]} c6 {[%emt 0:00:39]} 30. Qd4 {[%emt 0:00:42]} b5 {[%emt 0:00:37]} 31. cxb5 {[%emt 0:00:20]} cxb5 {[%emt 0:00:05]} 32. Qd5+ {[%emt 0:00:17]} Kh7 {[%emt 0:00:27]} 33. Qxb5 {[%emt 0:00:41]} Bc2 {[%emt 0:01:02]} 34. Rd7 {[%emt 0:01:43]} Qe3+ {[%emt 0:00:27]} 35. Bf2 {[%emt 0:06:00]} Qc1+ {[%emt 0:00:20]} 36. Qf1 {[%emt 0:00:07]} Qxb2 {[%emt 0:00:44]} 37. h3 {[%emt 0:00:22]} Qxa3 {[%emt 0:00:31]} 38. Qb5 {[%emt 0:02:23]} Qa6 {[%emt 0:00:32]} 39. Qxb7 {[%emt 0:01:02]} Qxb7 {[%emt 0:00:10]} 40. Rxb7 {[%emt 0:00:24]} 1/2-1/2

[Event "CZE-ch U14 Open 2023"]
[Site "Teplice"]
[Date "2023.03.12"]
[Round "2.5"]
[White "Martirosyan, David"]
[Black "Ocelak, David"]
[Result "1-0"]
[ECO "A80"]
[WhiteElo "1975"]
[BlackElo "1608"]
[Annotator "TA"]
[PlyCount "75"]
[EventDate "2023.03.09"]
[EventType "swiss"]
[EventCountry "CZE"]
[SourceTitle "playchess.com"]
[Source "ChessBase"]
[SourceQuality "1"]
[TimeControl "40/5400+30:1800+30"]

{[%evp 12,75,26,8,42,20,117,23,67,35,67,66,72,5,14,0,22,15,22,0,79,80,55,-36,65,51,53,65,64,64,66,79,93,83,217,225,227,209,462,454,403,150,89,92,99,17,178,185,173,175,163,0,0,0,0,0,141,0,0,0,0,0,21,0,706,713]} 1. d4 {[%emt 0:00:06]} f5 {[%emt 0:00:35]} 2. Nf3 {[%emt 0:00:48]} Nf6 {[%emt 0:00:18]} 3. c4 {[%emt 0:00:25]} g6 {[%emt 0:00:36]} 4. Nc3 {[%emt 0:01:03]} Bg7 {[%emt 0:00:35]} 5. Bf4 {[%emt 0:00:30]} d6 {[%emt 0:01:47]} 6. e3 {[%emt 0:00:35]} O-O {[%emt 0:00:53]} 7. Be2 {[%emt 0:00:45]} h6 {[%emt 0:02:04] A85: Dutch Defence: 2 c4 Nf6 3 Nc3.} 8. h4 {[%emt 0:03:52]} Nbd7 {[%emt 0:02:06]} (8... Nc6 $11 {keeps the balance.}) 9. Qc2 {[%emt 0:01:40] [#]} (9. c5 $1 $16) 9... Nh5 $146 {[%emt 0:08:09] White has an edge.} ({Predecessor:} 9... Ng4 10. d5 Ndf6 11. Nd4 a6 12. f3 Ne5 13. O-O-O c5 14. Bxe5 dxe5 15. Nb3 b6 {0-1 Karolyfalvi,Z (2173)-Bali,J (2313) HUN-chT3 0102 2001 (7.2)}) 10. O-O-O {[%emt 0:06:14][%cal Of4h6]} Nxf4 {[%emt 0:06:09]} 11. exf4 {[%emt 0:00:05]} Nf6 {[%emt 0:00:20]} 12. Bd3 {[%emt 0:02:17]} ({Better is} 12. h5 $16) 12... Bd7 $11 {[%emt 0:03:24]} 13. Rde1 {[%emt 0:03:20]} c6 {[%emt 0:04:37]} 14. Kb1 {[%emt 0:02:43]} Rb8 {[%emt 0:03:23]} 15. Ne2 {[%emt 0:15:01][%cal Oh4h5]} b5 {[%emt 0:02:39]} (15... Nh5 $11) 16. cxb5 $16 {[%emt 0:05:36]} cxb5 {[%emt 0:04:42]} 17. Ng3 {[%emt 0:00:29]} (17. Qb3+ $14 e6 18. h5) 17... a5 {[%emt 0:08:00]} (17... h5 $1 $15) 18. h5 $14 {[%emt 0:03:25]} Nxh5 {[%emt 0:06:34]} 19. Nxh5 {[%emt 0:00:42]} gxh5 {[%emt 0:00:08]} 20. Rxh5 {[%emt 0:02:25]} e6 {[%emt 0:02:00]} 21. Rg1 $1 {[%emt 0:09:07]} Rc8 {[%emt 0:11:50]} 22. Qe2 {[%emt 0:01:12]} b4 {[%emt 0:05:46]} (22... Rc7 $16 {might work better.}) 23. g4 $18 {[%emt 0:05:12]} fxg4 {[%emt 0:01:50]} (23... Qe8 24. Nh4) 24. Rxg4 {[%emt 0:01:03]} Rf6 {[%emt 0:00:35]} (24... Qf6 25. Rxa5 (25. Qe4 Rf7 $16) 25... Rc7) 25. Qe4 {[%emt 0:02:15] Threatening mate with Qh7+.} Qe7 {[%emt 0:02:26]} 26. Qh7+ $2 {[%emt 0:02:02]} (26. Rxa5 Bc6 27. Qh7+ Kf8 $18) (26. Rh1 $18 e5 27. Rxg7+ Kxg7 28. fxe5 dxe5 29. Nxe5) 26... Kf8 $16 {[%emt 0:00:08]} 27. Nh4 {[%emt 0:01:37] Chess con chili. White is much more active.} Be8 {[%emt 0:02:06]} (27... Qf7 $2 28. Rxa5 Be8 29. Ng6+ Rxg6 30. Bxg6 $18) 28. Bg6 {[%emt 0:04:28]} (28. Rxa5 $16 {Hoping for Rg1.} h5 29. Rg1) 28... Qc7 $2 {[%emt 0:02:07]} (28... Ba4 $1 $11 {and Black has nothing to worry.}) 29. Rg1 $1 $18 {[%emt 0:00:25]} Bxg6+ {[%emt 0:06:20]} (29... Rxf4 $2 30. Bxe8 Kxe8 31. Rc5 (31. Rxg7 $2 Qc1#) (31. Qxg7 $2 Qc2+ 32. Ka1 Qc1+ {[%mdl 64] Back Rank} 33. Rxc1 Rxc1#) 31... dxc5 32. Rxg7 $18) 30. Nxg6+ {[%emt 0:00:19]} Ke8 {[%emt 0:01:39] [#]} 31. Qg8+ $2 {[%emt 0:06:48]} (31. Rhh1 $1 $18 Qc2+ 32. Ka1 Rxg6 33. Qxg6+ Qxg6 34. Rxg6) 31... Bf8 $11 {[%emt 0:00:53] ( -> ...Qc2+)} 32. Rhh1 $1 $36 {[%emt 0:02:27][%mdl 2048] Black must now prevent Nxf8. White is more active.} (32. Rxh6 $2 {gets mated.} Qc2+ 33. Ka1 Qc1+ 34. Rxc1 Rxc1#) 32... Qf7 {[%emt 0:04:13]} (32... Qc4 $2 33. Nxf8 (33. Rxh6 $2 {is a self mate.} Qc2+ 34. Ka1 Qc1+ {[%mdl 64] Back Rank} 35. Rxc1 Rxc1#) 33... Rxf8 34. Qg6+ Kd8 35. Qxh6 Qd3+ 36. Ka1 $18) 33. Nxf8 {[%emt 0:11:36] aiming for Nh7+.} Qxf8 {[%emt 0:01:18] [#]} (33... Qxg8 $1 $11 34. Rxg8 Rxf8 35. Rxf8+ Kxf8) 34. d5 {[%emt 0:01:11]} (34. Qh7 $1 $16 {And now Rg8 would win.} Rf7 35. Qd3 (35. Qxh6 Qxh6 36. Rxh6 Ke7 $11)) 34... Qxg8 {[%emt 0:03:28]} 35. Rxg8+ {[%emt 0:00:08]} Kd7 {[%emt 0:00:08]} 36. Rg7+ {[%emt 0:00:11]} Kd8 {[%emt 0:01:22]} 37. Rhg1 {[%emt 0:01:45]} exd5 $2 {[%emt 0:02:28][%mdl 8192]} (37... Rc7 $11) 38. Rg8+ {Excellently played by Martirosyan!   Weighted Error Value: White=0.42/Black=0.57} 1-0

[Event "CZE-ch U14 Open 2023"]
[Site "Teplice"]
[Date "2023.03.12"]
[Round "2.6"]
[White "Roubal, Matyas"]
[Black "Veverka, Vladimir"]
[Result "1-0"]
[ECO "B53"]
[WhiteElo "1948"]
[BlackElo "1735"]
[Annotator "TA"]
[PlyCount "65"]
[EventDate "2023.03.09"]
[EventType "swiss"]
[EventCountry "CZE"]
[SourceTitle "playchess.com"]
[Source "ChessBase"]
[SourceQuality "1"]
[TimeControl "40/5400+30:1800+30"]

{[%evp 9,65,5,11,8,12,-24,-26,-48,0,-30,14,13,42,39,66,74,62,39,76,75,68,54,70,43,54,45,311,303,309,295,459,465,659,647,3506,3199,2520,1754,1754,1702,1602,789,782,729,685,614,658,558,606,599,617,610,746,731,29990,932,1068,479]} 1. e4 c5 2. Nf3 d6 3. d4 cxd4 4. Qxd4 Nc6 5. Qe3 Nf6 6. h3 {B53: Sicilian: 2...d6: Lines with Qxd4.} g6 7. c4 {[%emt 0:02:29]} Bg7 {[%emt 0:03:59]} 8. Be2 {[%emt 0:00:58] Black has an edge.} O-O {[%emt 0:00:43]} (8... Qa5+ $15 {feels stronger.} 9. Bd2 Qb6) 9. O-O {[%emt 0:00:31]} Qc7 {[%emt 0:00:59]} 10. Nc3 {[%emt 0:06:55] [#]} Nb4 $146 {[%emt 0:16:56]} ({Predecessor:} 10... a6 11. Bd2 e6 12. b3 Nd7 13. Rac1 Qb8 14. Rfd1 Nc5 15. Bf1 b6 16. Ne2 a5 {1-0 Nandhidhaa,P (2365)-Nurmanova,A (2008) Speed Chess (Women) Q4 blitz 2021 (13)}) 11. Rb1 Be6 12. b3 {[%emt 0:04:02]} Nd7 {[%emt 0:13:52]} 13. a3 {[%emt 0:12:36]} Bxc3 {[%emt 0:02:05]} 14. Qxc3 {[%emt 0:00:07]} Na2 {[%emt 0:00:40]} 15. Qe3 {[%emt 0:00:25] Strongly threatening Bb2.} Nxc1 {[%emt 0:00:41]} 16. Rbxc1 {[%emt 0:00:34]} (16. Rfxc1 {simplifies} Rfc8 17. Nd4 Nf8 18. f4) 16... Qc5 {[%emt 0:01:40]} 17. Qh6 $40 {[%emt 0:18:42][%mdl 128] White mounts an attack.} Qxa3 $2 {[%emt 0:17:35][%mdl 8192] [#] A mistake that costs the game.} ({Black should try} 17... Rfc8 $14) 18. Ng5 $1 $18 {[%emt 0:02:01][%csl Gg5][%cal Rh6h7]} ({Worse is} 18. Ra1 Qxb3 19. Ng5 Nf6 $17) 18... Nf6 {[%emt 0:00:59] [#]} 19. f4 $1 {[%emt 0:00:46]} Qc5+ {[%emt 0:00:46]} (19... Qxb3 $2 20. e5 Qe3+ 21. Kh1 dxe5 22. fxe5 Qxe5 23. Rxf6 $18) (19... Rfc8 $142 20. Rce1 Rc5) 20. Kh1 {[%emt 0:00:05]} Qe3 {[%emt 0:07:12] [#]} (20... Rfb8 $142 21. Rce1 Qc8) 21. e5 $1 {[%emt 0:03:33][%mdl 512]} Rfe8 {[%emt 0:02:37]} (21... dxe5 22. fxe5) 22. exf6 {[%emt 0:01:45]} exf6 {[%emt 0:00:14]} 23. Qxh7+ {[%emt 0:00:04]} Kf8 {[%emt 0:00:07]} 24. Nxe6+ {[%emt 0:00:04]} Qxe6 {[%emt 0:00:46]} 25. Bg4 {[%emt 0:00:06]} (25. Rce1 $142 f5 26. Qh8+ Ke7 27. Qh4+ Kd7 28. Bf3 {[%mdl 64] Discovered Attack}) 25... f5 {[%emt 0:00:47]} 26. Bf3 {[%emt 0:02:21] Qh8+ is the strong threat.} Qf6 {[%emt 0:00:38] Prevents Qh8+} 27. Bd5 {[%emt 0:01:57]} Re3 {[%emt 0:01:05]} 28. Rf3 {[%emt 0:04:14]} Rxf3 {[%emt 0:00:57]} 29. Bxf3 {[%emt 0:00:06]} Ke7 {[%emt 0:01:06] And now ...Rh8 would win.} 30. Qh6 {[%emt 0:01:37]} ({Weaker is} 30. Bxb7 Rh8 $17) 30... Qb2 {[%emt 0:00:38]} 31. Re1+ {[%emt 0:01:23]} Kf6 {[%emt 0:00:11]} 32. Bd5 {[%emt 0:01:56]} (32. g4 $142 fxg4 33. hxg4 Qe5 34. fxe5+ dxe5 35. g5+ Ke6 36. Qg7 Kd7 37. Qxf7+ Kd6 38. Rd1+ Kc5 39. Qe7+ Kb6 40. Qxb7+ Kc5 41. Rd5#) 32... Qd2 {[%emt 0:03:02]} 33. Qg5+ {[%emt 0:04:26] Weighted Error Value: White=0.21 (precise) /Black=0.57} (33. Qh4+ $142 Kg7 34. Bxf7) 1-0

[Event "CZE-ch U14 Open 2023"]
[Site "Teplice"]
[Date "2023.03.12"]
[Round "2.7"]
[White "Zelba, Lukas"]
[Black "Hobza, Richard"]
[Result "1-0"]
[ECO "A04"]
[WhiteElo "1912"]
[BlackElo "1702"]
[Annotator "TA"]
[PlyCount "77"]
[EventDate "2023.03.09"]
[EventType "swiss"]
[EventCountry "CZE"]
[SourceTitle "playchess.com"]
[Source "ChessBase"]
[SourceQuality "1"]
[TimeControl "40/5400+30:1800+30"]

{[%evp 14,77,76,0,0,0,0,0,0,0,0,0,5,-18,-24,-32,-18,-25,-22,-27,16,0,0,9,28,17,88,20,35,0,13,17,18,16,11,15,32,6,69,75,141,50,45,64,148,173,445,50,50,48,1152,1152,1104,1104,1106,1088,1068,1062,29985,29982,29980,29981,29987,29988,29980,932]} 1. Nf3 {[%emt 0:00:05]} e6 {[%emt 0:00:45]} 2. d4 {[%emt 0:05:51]} d5 {[%emt 0:00:14]} 3. c4 {[%emt 0:00:54]} Nf6 {[%emt 0:00:30]} 4. cxd5 {[%emt 0:00:21]} exd5 {[%emt 0:01:59]} 5. Nc3 {[%emt 0:00:19]} Bf5 {[%emt 0:04:44]} 6. Bg5 {[%emt 0:03:03]} Be7 {[%emt 0:02:45]} 7. Qb3 {[%emt 0:06:24]} Nbd7 {[%emt 0:20:50]} 8. e3 {[%emt 0:03:19]} ({Don't play} 8. Qxb7 Rb8 9. Qc6 Rb6 $15) (8. Nxd5 $16 Be6 9. Bxf6 Nxf6 10. Nxf6+ Bxf6 11. Qa4+ (11. Qxb7 O-O $11) 11... Bd7 12. Qb4) 8... Nb6 $11 {[%emt 0:03:25] D35: Queen's Gambit Declined: Exchange Variation.} 9. Ne5 {[%emt 0:11:46]} O-O {[%emt 0:06:08]} 10. Bd3 {[%emt 0:00:18]} Bxd3 {[%emt 0:01:55] The position is equal.} (10... Ne4 {keeps more tension.} 11. Bxe7 Qxe7 12. a4 a5) 11. Nxd3 {[%emt 0:04:43]} c6 {[%emt 0:01:31]} 12. O-O {[%emt 0:02:38] [#]} Ng4 $146 {[%emt 0:09:37]} ({Predecessor:} 12... h6 13. Bf4 Bd6 14. Bxd6 Qxd6 15. Ne5 Nfd7 16. Nxd7 Qxd7 17. Rad1 Rae8 18. Na4 Nxa4 19. Qxa4 {0-1 Aleksandrov,G (1994)-Moiseenko,V (2487) St Petersburg blitz prelim 2014 (10)}) 13. h3 {[%emt 0:14:56]} Bxg5 {[%emt 0:01:26]} 14. hxg4 {[%emt 0:00:05]} Qc8 {[%emt 0:02:15]} 15. Qd1 {[%emt 0:09:34]} Re8 {[%emt 0:06:09]} 16. b3 {[%emt 0:00:43]} Re6 {[%emt 0:01:36]} 17. f4 {[%emt 0:05:24]} Bd8 {[%emt 0:11:16]} 18. Qf3 {[%emt 0:03:12]} Bc7 {[%emt 0:04:37]} 19. Rae1 {[%emt 0:09:08]} Qe8 {[%emt 0:04:17]} (19... h6 $11) 20. Nc5 {[%emt 0:02:37]} (20. f5 $1 $16 {[%cal Rf5e6]} Rd6 21. Nc5) 20... Re7 {[%emt 0:00:07]} 21. Re2 {[%emt 0:01:06]} (21. Nxb7 $5 Bxf4 22. Qxf4 Rxb7 23. e4 $14) 21... Bd6 {[%emt 0:00:50]} 22. e4 {[%emt 0:01:54]} Bxc5 {[%emt 0:02:11]} 23. dxc5 {[%emt 0:00:21]} dxe4 {[%emt 0:03:27]} 24. Nxe4 {[%emt 0:00:46]} Nd5 {[%emt 0:00:26]} 25. f5 {[%emt 0:01:11]} Nf6 {[%emt 0:03:16]} (25... f6 $11) 26. Nd6 $14 {[%emt 0:01:32]} Qd7 {[%emt 0:01:29]} ({Better is} 26... Rxe2 27. Nxe8 Raxe8) 27. Rxe7 {[%emt 0:02:26]} (27. g5 $1 $16 {[%cal Rg5f6]} Nd5 28. Rxe7 Qxe7 29. f6) 27... Qxe7 {[%emt 0:00:08]} 28. g5 {[%emt 0:00:03]} Ne8 {[%emt 0:01:18]} ({Black should try} 28... Qe5 $1 $14) 29. f6 $16 {[%emt 0:01:29] White is much more active. The black rooks are badly placed.} Qd7 {[%emt 0:01:43]} (29... Qe5 30. Nxf7 (30. Nxb7 Rb8 $11) 30... Qd4+ 31. Rf2 Nxf6) 30. fxg7 $2 {[%emt 0:03:01]} ({White should play} 30. Re1 $18 {Hoping for Re7.} Nxd6 31. Qd1 {[%mdl 64] Pin}) 30... Nxd6 $14 {[%emt 0:00:13]} 31. cxd6 {[%emt 0:00:13] Qf4 is the strong threat.} Kxg7 $2 $18 {[%emt 0:00:49][%mdl 12288] Endgame [#] KQR-KQR. This move loses the game for Black.} (31... Re8 $14) 32. Qf6+ $1 {[%emt 0:00:11]} ({Weaker is} 32. g6 fxg6 33. Qc3+ Kg8 $14) 32... Kg8 {[%emt 0:00:12]} 33. Re1 {[%emt 0:00:18] Threatening mate with Re7.} Qg4 {[%emt 0:02:18]} 34. Re7 {[%emt 0:00:50][%csl LRb7,LRf7]} Qd1+ {[%emt 0:00:13]} 35. Kh2 {[%emt 0:00:10]} Qh5+ {[%emt 0:01:21]} 36. Kg3 {[%emt 0:00:12] White mates.} Qg6 {[%emt 0:00:59]} 37. d7 {[%emt 0:02:07]} Qd3+ {[%emt 0:01:14]} 38. Kh2 {[%emt 0:00:09]} Rf8 {[%emt 0:00:33] [#]} 39. Rxf7 $3 {[%emt 0:01:03][%mdl 512] A cool game by Zelba.   Weighted Error Value: White=0.38/Black=0.53} 1-0

[Event "CZE-ch U14 Open 2023"]
[Site "Teplice"]
[Date "2023.03.12"]
[Round "2.8"]
[White "Babula, Matej"]
[Black "Soucek, Andrej"]
[Result "1/2-1/2"]
[ECO "C50"]
[WhiteElo "1796"]
[BlackElo "1679"]
[Annotator "NA RC COMBH"]
[PlyCount "89"]
[EventDate "2023.03.09"]
[EventType "swiss"]
[EventCountry "CZE"]
[SourceTitle "playchess.com"]
[Source "ChessBase"]
[SourceQuality "1"]
[TimeControl "40/5400+30:1800+30"]

1. e4 {[%emt 0:00:03]} e5 {[%emt 0:00:09]} 2. Nf3 {[%emt 0:00:07]} Nc6 {[%emt 0:00:06]} 3. Bc4 {[%emt 0:00:24]} Nf6 {[%emt 0:00:13]} 4. d3 {[%emt 0:00:07]} Bc5 {[%emt 0:00:20]} 5. O-O {[%emt 0:00:34]} a6 {[%emt 0:00:14]} 6. a4 {[%emt 0:01:18]} d6 {[%emt 0:00:27]} 7. c3 {[%emt 0:01:18]} Ba7 {[%emt 0:00:45]} 8. h3 {[%emt 0:08:20]} O-O {[%emt 0:08:56]} 9. Nbd2 {[%emt 0:09:40]} Be6 {[%emt 0:10:06]} 10. Re1 {[%emt 0:05:44]} Re8 {[%emt 0:05:45]} 11. Bb3 {[%emt 0:02:30]} d5 {[%emt 0:06:28]} 12. Bc2 {[%emt 0:13:23]} h6 {[%emt 0:09:32]} 13. Nf1 {[%emt 0:03:08]} dxe4 {[%emt 0:08:38]} 14. dxe4 {[%emt 0:00:14]} Qxd1 {[%emt 0:06:41]} 15. Rxd1 {[%emt 0:00:59]} a5 {[%emt 0:02:00]} 16. Be3 {[%emt 0:03:57]} Bxe3 {[%emt 0:01:18]} 17. Nxe3 {[%emt 0:00:06]} Rad8 {[%emt 0:02:16]} 18. Ne1 {[%emt 0:17:25]} g6 {[%emt 0:06:53]} 19. f3 {[%emt 0:03:00]} Nh5 {[%emt 0:03:20]} 20. Nd3 {[%emt 0:01:42]} Nf4 {[%emt 0:00:53]} 21. Nxf4 {[%emt 0:03:53]} exf4 {[%emt 0:00:05]} 22. Nd5 {[%emt 0:00:20]} Bxd5 {[%emt 0:01:17]} 23. Rxd5 {[%emt 0:00:52]} Rxd5 {[%emt 0:03:21]} 24. exd5 {[%emt 0:00:05]} Ne5 {[%emt 0:00:28]} 25. Bb3 {[%emt 0:08:38]} Nd3 {[%emt 0:03:53]} 26. Rd1 {[%emt 0:01:20]} Nc5 {[%emt 0:00:07]} 27. Bc4 {[%emt 0:00:42]} Rd8 {[%emt 0:07:15]} 28. b3 {[%emt 0:02:44]} Kg7 {[%emt 0:02:07]} 29. Kf2 {[%emt 0:01:47]} Kf6 {[%emt 0:00:34]} 30. Re1 {[%emt 0:00:56]} Nd7 {[%emt 0:00:58]} 31. Bb5 {[%emt 0:04:20]} Ne5 {[%emt 0:02:32]} 32. Rd1 {[%emt 0:00:23]} c6 {[%emt 0:04:43]} 33. dxc6 {[%emt 0:00:20]} Nxc6 {[%emt 0:02:05]} 34. Rxd8 {[%emt 0:00:09]} Nxd8 {[%emt 0:00:06]} 35. b4 {[%emt 0:00:41]} axb4 {[%emt 0:01:47]} 36. cxb4 {[%emt 0:00:01]} Ke5 {[%emt 0:00:17]} 37. a5 {[%emt 0:02:26]} Kd5 {[%emt 0:00:39]} 38. a6 {[%emt 0:02:47]} bxa6 {[%emt 0:00:17]} 39. Bxa6 {[%emt 0:00:02]} Nc6 {[%emt 0:00:43]} 40. Bb7 {[%emt 0:00:48]} Kd6 {[%emt 0:00:13]} 41. Bxc6 {[%emt 0:12:52]} Kxc6 {[%emt 0:00:00]} 42. Ke2 {[%emt 0:00:40]} Kb5 {[%emt 0:00:00]} 43. Kd3 {[%emt 0:00:23]} Kxb4 {[%emt 0:00:00]} 44. Ke4 {[%emt 0:00:04]} Kc4 {[%emt 0:00:00]} 45. Kxf4 {[%emt 0:00:11]} 1/2-1/2